bitfinex/quotes_SOLUSD_20240606
["timestamp","ask_amount","ask_price","bid_price","bid_amount"]
[1717670905408,5.8,172.52,172.49,102.03194371]
[1717670909502,5.8,172.52,172.5,3.03194371]
[1717670910025,5.8,172.52,172.49,102.03194371]
[1717670910923,5.8,172.51,172.49,102.03194371]
[1717670911620,5.8,172.5,172.49,104.17694371]
[1717670911859,5.8,172.5,172.49,102.03194371]
[1717670913422,5.8,172.5,172.49,99.0]
[1717670914322,5.8,172.51,172.49,99.0]
[1717670914502,5.8,172.51,172.49,102.03194371]
[1717670914904,5.8,172.5,172.49,102.03194371]
[1717670915219,5.8,172.5,172.49,99.0]
[1717670916135,5.8,172.5,172.49,102.03194371]
[1717670916510,5.8,172.5,172.49,99.0]
[1717670918541,2.1444,172.54,172.49,99.0]
[1717670918836,7.9445,172.53,172.49,99.0]
[1717670919011,5.8,172.53,172.5,5.3502655]
[1717670919642,2.1445,172.53,172.5,5.3502655]
[1717670919825,2.1446,172.52,172.5,5.3502655]
[1717670920544,5.8,172.53,172.5,5.3502655]
[1717670920927,2.1445,172.54,172.5,5.3502655]
[1717670921124,7.9445,172.54,172.51,3.03194371]
[1717670921324,5.8,172.54,172.52,2.31805303]
[1717670922421,7.9443,172.55,172.52,2.31805303]
[1717670925019,2.1444,172.54,172.52,2.31805303]
[1717670925962,19.2966,172.57,172.52,2.31805303]
[1717670925963,7.9442,172.56,172.52,8.33655303]
[1717670926246,2.1442,172.56,172.53,6.0185]
[1717670926427,2.1442,172.56,172.54,2.31770759]
[1717670926626,2.1442,172.56,172.55,2.31771412]
[1717670927419,4.2878,172.59,172.55,2.31771412]
[1717670927622,2.144,172.58,172.55,2.31771412]
[1717670927852,2.1438,172.59,172.55,8.55681412]
[1717670928146,7.9439,172.58,172.56,2.31746934]
[1717670928723,2.1438,172.59,172.56,2.31746934]
[1717670928922,7.9438,172.59,172.56,2.31746934]
[1717670929952,2.1437,172.6,172.56,2.31746934]
[1717670930124,5.8,172.58,172.56,2.31746934]
[1717670930627,2.1437,172.6,172.56,2.31746934]
[1717670930833,2.1437,172.6,172.56,8.72296934]
[1717670931033,2.1437,172.6,172.57,2.31722389]
[1717670931232,5.8,172.59,172.58,2.31721348]
[1717670932157,2.1437,172.6,172.58,2.31721348]
[1717670932328,5.8,172.59,172.58,2.31721348]
[1717670934751,2.1437,172.6,172.58,2.31721348]
[1717670934952,5.8,172.59,172.58,2.31721348]
[1717670935341,2.1437,172.6,172.58,2.31721348]
[1717670935838,5.8,172.59,172.58,2.31721348]
[1717670936234,2.1437,172.6,172.58,2.31721348]
[1717670936434,5.8,172.59,172.58,2.31721348]
[1717670937264,2.1437,172.6,172.58,2.31721348]
[1717670937553,5.8,172.59,172.58,2.31721348]
[1717670938235,2.1437,172.6,172.58,2.31721348]
[1717670938442,5.8,172.59,172.58,2.31721348]
[1717670938841,2.1437,172.6,172.58,2.31721348]
[1717670939151,5.8,172.59,172.58,2.31721348]
[1717670939935,2.1437,172.6,172.58,2.31721348]
[1717670940139,5.8,172.59,172.58,2.31721348]
[1717670940545,2.1437,172.6,172.58,2.31721348]
[1717670940751,5.8,172.59,172.58,2.31721348]
[1717670943535,5.8,172.59,172.56,6.4055]
[1717670944267,2.1437,172.6,172.56,6.4055]
[1717670944434,5.8,172.58,172.56,6.4055]
[1717670944634,2.1437,172.6,172.56,6.4055]
[1717670945157,5.8,172.58,172.56,6.4055]
[1717670949138,2.1437,172.6,172.57,2.31667644]
[1717670949338,5.8,172.59,172.58,2.3165422]
[1717670949847,2.1437,172.6,172.58,2.3165422]
[1717670950163,5.8,172.59,172.58,2.3165422]
[1717670951974,2.1436,172.61,172.58,2.3165422]
[1717670952171,5.8,172.59,172.58,2.3165422]
[1717670952668,5.8,172.59,172.56,6.4055]
[1717670953167,5.8,172.59,172.54,2.31731134]
[1717670953367,5.8,172.59,172.55,2.31717704]
[1717670953546,5.8,172.59,172.55,53.56097704]
[1717670957849,5.8,172.59,172.55,51.2438]
[1717670958859,5.8,172.59,172.55,45.0]
[1717670959258,2.1436,172.61,172.55,45.0]
[1717670959559,5.8,172.59,172.55,45.0]
[1717670961668,5.8,172.59,172.52,23.91934371]
[1717670961866,5.8,172.59,172.53,65.0]
[1717670962162,5.8,172.58,172.53,65.0]
[1717670962366,5.8,172.58,172.53,71.5575]
[1717670963555,2.1436,172.61,172.53,77.3575]
[1717670963556,5.8,172.6,172.53,77.3575]
[1717670963763,5.8,172.59,172.53,71.5575]
[1717670965574,5.8,172.59,172.53,74.58944371]
[1717670965775,5.8,172.6,172.53,74.58944371]
[1717670966872,2.1436,172.61,172.53,74.58944371]
[1717670967168,5.8,172.6,172.53,74.58944371]
[1717670970376,5.8,172.6,172.54,3.03194371]
[1717670971659,7.9437,172.6,172.54,3.03194371]
[1717670971859,5.8,172.6,172.54,3.03194371]
[1717670975656,5.8,172.6,172.55,3.03194371]
[1717670975861,5.8,172.6,172.54,3.03194371]
[1717670977864,2.144,172.58,172.54,3.03194371]
[1717670978066,5.8,172.55,172.52,3.03194371]
[1717670978264,7.9443,172.55,172.52,3.03194371]
[1717670978458,5.8,172.54,172.52,3.03194371]
[1717670978675,5.8,172.53,172.51,3.03194371]
[1717670978876,5.8,172.53,172.5,3.03194371]
[1717670983173,5.8,172.53,172.49,108.52414371]
[1717670984398,5.8,172.53,172.49,102.03194371]
[1717670984687,5.8,172.52,172.49,102.03194371]
[1717670985871,2.1443,172.55,172.49,102.03194371]
[1717670986178,5.8,172.52,172.49,102.03194371]
[1717670988198,5.8,172.52,172.49,99.0]
[1717670995383,2.1443,172.55,172.49,99.0]
[1717670995596,5.8,172.52,172.49,99.0]
[1717670997474,5.8,172.51,172.49,99.0]
[1717670997880,5.8,172.5,172.49,99.0]
[1717670998580,2.1447,172.52,172.49,99.0]
[1717670998785,5.8,172.5,172.49,99.0]
[1717671001483,5.8,172.51,172.49,99.0]
[1717671004905,2.1446,172.53,172.49,99.0]
[1717671005110,5.8,172.51,172.49,99.0]
[1717671006006,2.1446,172.53,172.49,99.0]
[1717671006187,5.8,172.51,172.49,99.0]
[1717671014208,5.8,172.5,172.49,99.0]
[1717671016217,5.8,172.51,172.49,99.0]
[1717671020512,5.8,172.52,172.49,99.0]
[1717671021211,2.1446,172.53,172.49,99.0]
[1717671021421,5.8,172.52,172.49,99.0]
[1717671022716,2.1446,172.53,172.49,99.0]
[1717671022917,7.9446,172.53,172.49,99.0]
[1717671024519,7.9446,172.53,172.49,108.46094371]
[1717671024520,2.1446,172.53,172.49,108.46094371]
[1717671025414,8.5748,172.6,172.49,108.46094371]
[1717671025598,7.9439,172.58,172.52,8.83194371]
[1717671027019,2.144,172.57,172.52,8.83194371]
[1717671027227,2.144,172.57,172.52,15.04324371]
[1717671027925,7.9439,172.58,172.52,15.04324371]
[1717671028126,2.1438,172.59,172.53,45.0]
[1717671028327,5.8,172.59,172.53,50.8]
[1717671028630,2.1437,172.6,172.53,53.83194371]
[1717671028631,7.9437,172.6,172.53,53.83194371]
[1717671029233,2.1437,172.6,172.53,53.83194371]
[1717671029417,5.8,172.59,172.53,53.83194371]
[1717671030101,5.8,172.59,172.53,48.03194371]
[1717671030301,5.8,172.59,172.53,8.83194371]
[1717671030636,2.1437,172.6,172.55,6.0743]
[1717671031129,5.8,172.59,172.55,6.0743]
[1717671031330,2.1437,172.6,172.54,45.0]
[1717671031504,5.8,172.6,172.54,56.8743]
[1717671031922,7.9436,172.6,172.54,56.8743]
[1717671032098,7.9436,172.6,172.54,59.90624371]
[1717671033627,5.8,172.6,172.54,56.8743]
[1717671033914,2.1436,172.61,172.54,56.8743]
[1717671034221,5.8,172.6,172.54,56.8743]
[1717671035525,2.1436,172.61,172.54,56.8743]
[1717671035823,5.8,172.59,172.54,45.0]
[1717671036025,5.8,172.59,172.55,6.0058]
[1717671040405,5.8,172.59,172.55,6.5922]
[1717671043633,5.8,172.59,172.52,5.8]
[1717671043819,5.8,172.56,172.53,20.0]
[1717671044025,5.8,172.56,172.52,6.3274]
[1717671050027,4.2868,172.63,172.52,6.3274]
[1717671050236,5.8,172.57,172.52,6.3274]
[1717671052724,2.1437,172.6,172.52,6.3274]
[1717671052925,5.8,172.58,172.52,12.1274]
[1717671053121,2.1437,172.6,172.53,0.39788064]
[1717671053323,5.8,172.58,172.53,6.45498064]
[1717671053525,2.1437,172.6,172.53,6.45498064]
[1717671053526,2.1436,172.61,172.54,45.39785757]
[1717671053725,5.8,172.6,172.55,6.45493452]
[1717671054941,7.9436,172.6,172.55,6.45493452]
[1717671055335,5.8,172.6,172.56,0.39666741]
[1717671055834,7.9437,172.6,172.56,0.39666741]
[1717671056543,7.9437,172.6,172.55,6.0571]
[1717671059334,2.1438,172.59,172.55,6.0571]
[1717671061625,7.9438,172.59,172.55,6.0571]
[1717671062247,2.1439,172.58,172.52,3.03194371]
[1717671062430,5.8,172.56,172.52,3.03194371]
[1717671062633,5.8,172.56,172.51,25.03594371]
[1717671064650,5.8,172.56,172.52,45.0]
[1717671065441,5.8,172.56,172.52,51.4093]
[1717671065649,5.8,172.57,172.52,51.4093]
[1717671066437,5.8,172.58,172.52,51.4093]
[1717671068356,5.8,172.57,172.52,51.4093]
[1717671069259,5.8,172.57,172.52,54.44124371]
[1717671069439,5.8,172.58,172.52,60.24124371]
[1717671070357,2.1438,172.59,172.52,60.24124371]
[1717671070541,5.8,172.58,172.52,60.24124371]
[1717671072279,2.1438,172.59,172.53,3.03194371]
[1717671072569,5.8,172.58,172.53,9.39074371]
[1717671072939,2.1438,172.59,172.53,9.39074371]
[1717671073247,5.8,172.58,172.53,9.39074371]
[1717671075358,2.1438,172.59,172.53,9.39074371]
[1717671075555,5.8,172.58,172.53,9.39074371]
[1717671076058,5.8,172.58,172.54,3.03194371]
[1717671079071,2.1438,172.59,172.54,3.03194371]
[1717671079365,5.8,172.58,172.54,3.03194371]
[1717671080261,2.1438,172.59,172.54,3.03194371]
[1717671080460,5.8,172.58,172.54,3.03194371]
[1717671080771,2.1438,172.59,172.54,3.03194371]
[1717671080951,5.8,172.58,172.54,3.03194371]
[1717671081948,5.8,172.58,172.54,9.62784371]
[1717671082549,5.8,172.58,172.55,0.87227568]
[1717671082750,5.8,172.58,172.55,3.90421939]
[1717671083270,5.8,172.58,172.55,3.03194371]
[1717671083472,5.8,172.58,172.54,9.62784371]
[1717671084277,5.8,172.58,172.55,3.03194371]
[1717671084580,5.8,172.58,172.54,9.62784371]
[1717671085271,2.1437,172.6,172.55,6.043]
[1717671085449,5.8,172.59,172.55,6.043]
[1717671085650,2.1437,172.6,172.55,6.043]
[1717671085651,7.9437,172.6,172.55,9.07494371]
[1717671086259,6.01828854,172.69,172.55,14.87494371]
[1717671086464,144.40297437,172.7,172.55,14.87494371]
[1717671086465,2.1434,172.62,172.56,5.8]
[1717671086653,2.1434,172.62,172.58,6.2324]
[1717671086854,2.1434,172.62,172.57,15.1033]
[1717671087068,2.1434,172.62,172.57,27.4093]
[1717671087467,2.1435,172.61,172.57,27.4093]
[1717671087757,2.1435,172.61,172.57,21.6093]
[1717671088465,2.1434,172.62,172.57,21.6093]
[1717671088666,2.1434,172.62,172.57,15.1033]
[1717671088874,7.9434,172.62,172.58,6.1777]
[1717671089875,2.1435,172.61,172.58,6.1777]
[1717671090878,7.9434,172.62,172.58,6.1777]
[1717671091775,2.1435,172.61,172.58,6.1777]
[1717671104895,2.1435,172.61,172.56,9.43814371]
[1717671105498,2.1435,172.61,172.57,6.4062]
[1717671107086,115.61427777,172.72,172.57,6.4062]
[1717671107087,6.4836,172.7,172.58,5.8]
[1717671107290,2.143,172.66,172.61,5.8]
[1717671107485,2.1427,172.68,172.62,2.31644067]
[1717671107683,2.1428,172.67,172.63,6.4366]
[1717671107874,2.1428,172.67,172.64,2.31617231]
[1717671108080,2.1428,172.67,172.65,2.31603815]
[1717671109173,2.1428,172.67,172.64,2.31603814]
[1717671109387,7.9427,172.68,172.65,2.31603814]
[1717671109872,2.1428,172.67,172.65,2.31603814]
[1717671110379,2.1427,172.68,172.65,2.31603814]
[1717671110581,7.9426,172.69,172.64,45.0]
[1717671110792,7.9426,172.69,172.64,51.2614]
[1717671111178,4.2841,172.73,172.66,6.2614]
[1717671111372,7.9424,172.71,172.65,12.0614]
[1717671112189,5.8,172.71,172.65,12.0614]
[1717671113290,5.8,172.71,172.67,6.2614]
[1717671114486,5.8,172.71,172.68,0.55575765]
[1717671114878,2.1422,172.72,172.68,1.71352404]
[1717671115086,5.8,172.71,172.68,1.71352404]
[1717671115391,2.1421,172.73,172.68,1.71352404]
[1717671115583,5.8,172.71,172.68,1.71352404]
[1717671115788,5.8,172.72,172.68,1.71352404]
[1717671117096,2.1421,172.73,172.68,1.71352404]
[1717671117486,5.8,172.72,172.68,1.71352404]
[1717671117679,5.8,172.72,172.67,6.2614]
[1717671117881,5.8,172.71,172.67,6.2614]
[1717671128390,2.1419,172.74,172.67,6.2614]
[1717671128814,2.1419,172.74,172.66,16.5612]
[1717671128815,5.8,172.72,172.66,11.9384]
[1717671129109,2.1419,172.74,172.66,11.9384]
[1717671129320,5.8,172.72,172.66,11.9384]
[1717671129810,2.1419,172.74,172.66,11.9384]
[1717671130124,5.8,172.72,172.66,11.9384]
[1717671131013,5.8,172.72,172.66,6.1384]
[1717671131222,5.8,172.72,172.66,11.9384]
[1717671132323,2.142,172.73,172.66,11.9384]
[1717671132494,5.8,172.72,172.66,11.9384]
[1717671134795,2.142,172.73,172.66,11.9384]
[1717671135198,5.8,172.72,172.66,11.9384]
[1717671137294,5.8,172.72,172.67,0.7877886]
[1717671137495,5.8,172.72,172.68,6.3159]
[1717671137711,5.8,172.72,172.69,1.36683625]
[1717671137890,2.142,172.74,172.69,1.36683625]
[1717671138130,5.8,172.73,172.69,1.36683625]
[1717671138313,5.8,172.73,172.69,7.68273625]
[1717671138620,7.9419,172.74,172.69,7.68273625]
[1717671138918,5.8,172.74,172.7,1.5379444]
[1717671139127,5.8,172.74,172.7,6.1369]
[1717671139340,5.8,172.74,172.71,2.31550854]
[1717671140311,2.1418,172.75,172.71,2.31550854]
[1717671140516,5.8,172.74,172.71,2.31550854]
[1717671141034,5.8,172.73,172.66,6.3477]
[1717671141192,5.8,172.73,172.67,70.8]
[1717671141396,5.8,172.73,172.67,65.0]
[1717671146221,2.1417,172.76,172.67,65.0]
[1717671146521,2.1417,172.76,172.68,0.30032399]
[1717671146522,5.8,172.74,172.68,0.30032399]
[1717671147726,2.1417,172.76,172.68,0.30032399]
[1717671148026,5.8,172.74,172.67,70.8]
[1717671152323,2.1417,172.76,172.67,70.8]
[1717671152620,5.8,172.74,172.67,70.8]
[1717671153730,5.8,172.74,172.68,1.15813509]
[1717671154035,5.8,172.74,172.67,70.8]
[1717671155134,5.8,172.74,172.68,0.66061577]
[1717671155437,2.1417,172.76,172.68,0.66061577]
[1717671155438,2.1418,172.75,172.68,6.46061577]
[1717671155632,5.8,172.74,172.68,0.66061577]
[1717671155811,5.8,172.74,172.68,6.46061577]
[1717671156011,5.8,172.74,172.69,51.2485]
[1717671156912,5.8,172.74,172.69,45.0]
[1717671157223,5.8,172.74,172.7,6.2485]
[1717671158735,5.8,172.73,172.67,20.0]
[1717671158933,5.8,172.73,172.68,45.0]
[1717671159120,5.8,172.73,172.67,45.0]
[1717671159432,5.8,172.73,172.68,20.0]
[1717671159634,5.8,172.72,172.68,20.0]
[1717671159837,5.8,172.69,172.65,6.0076]
[1717671161038,5.8,172.69,172.63,3.03194371]
[1717671161228,5.8,172.69,172.64,3.03194371]
[1717671161637,5.8,172.69,172.64,23.03194371]
[1717671163729,5.8,172.69,172.65,20.0]
[1717671164552,5.8,172.69,172.64,23.03194371]
[1717671164926,5.8,172.69,172.64,3.03194371]
[1717671165122,2.1424,172.71,172.64,48.03194371]
[1717671165342,5.8,172.67,172.64,3.03194371]
[1717671166243,5.8,172.67,172.62,3.03194371]
[1717671166443,5.8,172.67,172.62,45.0]
[1717671167541,5.8,172.67,172.63,1.68409963]
[1717671167732,5.8,172.68,172.63,1.68409963]
[1717671168649,5.8,172.68,172.66,8.69188699]
[1717671168831,5.8,172.68,172.65,8.69188699]
[1717671169147,5.8,172.68,172.66,1.69004922]
[1717671175236,5.8,172.68,172.65,1.69049985]
[1717671175854,5.8,172.68,172.64,8.69188699]
[1717671176059,7.9427,172.68,172.64,8.69188699]
[1717671176750,5.8,172.67,172.64,8.69188699]
[1717671179061,2.1426,172.69,172.64,8.69188699]
[1717671179244,5.8,172.67,172.64,8.69188699]
[1717671181134,5.8,172.68,172.64,8.69188699]
[1717671181341,2.1426,172.69,172.64,8.69188699]
[1717671181643,5.8,172.68,172.64,8.69188699]
[1717671182757,5.8,172.68,172.65,8.69188699]
[1717671183563,5.8,172.68,172.62,50.8]
[1717671183564,5.8,172.68,172.64,8.69188699]
[1717671184773,5.8,172.68,172.64,8.69188582]
[1717671187571,5.8,172.68,172.65,8.69188582]
[1717671188748,5.8,172.68,172.64,8.69188582]
[1717671189166,5.8,172.68,172.65,8.69188582]
[1717671189343,7.9424,172.7,172.65,8.69188582]
[1717671189569,5.8,172.7,172.66,8.69188582]
[1717671189778,2.1422,172.72,172.66,8.69188582]
[1717671189938,5.8,172.71,172.66,15.35458582]
[1717671190145,5.8,172.73,172.67,50.8]
[1717671190678,5.8,172.72,172.68,8.69188582]
[1717671191148,5.8,172.71,172.67,53.69188582]
[1717671194142,5.8,172.71,172.67,53.68869759]
[1717671194669,5.8,172.71,172.67,45.0]
[1717671194867,5.8,172.7,172.66,8.68869759]
[1717671197971,5.8,172.7,172.64,5.8]
[1717671198175,5.8,172.71,172.66,8.68711875]
[1717671199077,5.8,172.71,172.67,8.68711875]
[1717671199683,5.8,172.71,172.68,8.68711875]
[1717671200765,2.142,172.74,172.68,8.68711875]
[1717671200957,5.8,172.72,172.68,8.68711875]
[1717671202859,2.1418,172.75,172.68,8.68711875]
[1717671203182,5.8,172.73,172.69,8.68711875]
[1717671203884,5.8,172.74,172.69,8.68711875]
[1717671204081,2.1418,172.75,172.69,8.68711875]
[1717671204470,5.8,172.74,172.69,8.68711875]
[1717671204986,2.1418,172.75,172.69,8.68711875]
[1717671205399,2.1419,172.74,172.69,8.68711875]
[1717671205599,7.9419,172.74,172.69,8.68711875]
[1717671208610,2.1421,172.73,172.68,14.48711875]
[1717671208910,7.9421,172.73,172.68,8.68711875]
[1717671210313,2.1421,172.73,172.68,8.68711875]
[1717671210607,7.9421,172.73,172.68,8.68711875]
[1717671210816,5.8,172.72,172.68,8.68711875]
[1717671211389,5.8,172.71,172.67,8.68711875]
[1717671212092,5.8,172.71,172.66,8.68711875]
[1717671212507,5.8,172.71,172.67,8.68711875]
[1717671212702,5.8,172.7,172.67,8.68711875]
[1717671213416,5.8,172.7,172.66,8.68711875]
[1717671213610,5.8,172.69,172.67,8.68711875]
[1717671213798,5.8,172.69,172.66,8.68711875]
[1717671214615,5.8,172.68,172.65,8.68711875]
[1717671215000,2.1424,172.7,172.65,8.68711875]
[1717671215201,4.2844,172.72,172.65,8.68711875]
[1717671215202,5.8,172.68,172.65,8.68711875]
[1717671216296,2.1423,172.71,172.65,8.68711875]
[1717671216621,5.8,172.69,172.66,8.68711875]
[1717671217116,5.8,172.69,172.65,8.68711875]
[1717671217495,5.8,172.69,172.63,5.8]
[1717671217496,5.8,172.69,172.66,8.68711875]
[1717671220100,5.8,172.69,172.65,8.68711875]
[1717671220614,5.8,172.69,172.66,8.68711875]
[1717671221121,5.8,172.69,172.65,8.68711875]
[1717671221505,5.8,172.68,172.65,8.68711875]
[1717671224831,5.8,172.68,172.65,8.68578496]
[1717671226218,5.8,172.68,172.62,12.4627]
[1717671226522,5.8,172.68,172.65,8.68577455]
[1717671227538,5.8,172.67,172.64,8.68577455]
[1717671232133,2.1425,172.7,172.64,8.6843027]
[1717671232310,5.8,172.68,172.64,8.6843027]
[1717671236035,5.8,172.68,172.64,8.68391462]
[1717671236219,5.8,172.65,172.64,8.68391462]
[1717671236625,5.8,172.65,172.63,8.68391462]
[1717671236939,2.1429,172.66,172.63,8.68391462]
[1717671236940,5.8,172.64,172.63,8.68391462]
[1717671239439,5.8,172.65,172.62,8.68391462]
[1717671240634,5.8,172.66,172.59,5.8]
[1717671241021,2.1428,172.67,172.59,5.8]
[1717671241241,5.8,172.66,172.59,5.8]
[1717671241440,5.8,172.66,172.59,8.83194371]
[1717671242044,5.8,172.66,172.59,5.8]
[1717671242844,2.1428,172.67,172.6,5.8]
[1717671243033,5.8,172.66,172.6,5.8]
[1717671243837,7.9428,172.67,172.61,5.8]
[1717671245346,5.8,172.67,172.61,5.8]
[1717671245527,5.8,172.67,172.6,5.8]
[1717671245722,5.8,172.67,172.61,45.0]
[1717671246149,7.9428,172.67,172.61,45.0]
[1717671249250,2.1428,172.67,172.61,45.0]
[1717671249449,7.9428,172.67,172.61,45.0]
[1717671249643,2.1427,172.68,172.61,45.0]
[1717671249842,7.9427,172.68,172.61,50.8]
[1717671250454,2.1428,172.67,172.62,0.67150444]
[1717671251651,2.1428,172.67,172.62,1.5340873]
[1717671251953,2.1428,172.67,172.61,50.8]
[1717671255655,2.1428,172.67,172.62,1.41351406]
[1717671256753,2.1428,172.67,172.61,45.0]
[1717671257068,2.1428,172.67,172.62,45.0]
[1717671262636,7.9428,172.67,172.62,45.0]
[1717671262941,7.9428,172.67,172.61,45.0]
[1717671264760,5.8,172.67,172.61,45.0]
[1717671265257,2.1427,172.68,172.61,48.03194371]
[1717671265562,5.8,172.67,172.62,1.54851272]
[1717671265748,7.9427,172.68,172.61,53.83194371]
[1717671266360,7.9427,172.68,172.62,3.03194371]
[1717671266556,5.8,172.67,172.62,3.03194371]
[1717671266857,5.8,172.67,172.61,48.03194371]
[1717671269660,5.8,172.67,172.61,45.0]
[1717671270557,5.8,172.67,172.61,48.03194371]
[1717671273166,7.9428,172.67,172.61,48.03194371]
[1717671273852,5.8,172.67,172.61,48.03194371]
[1717671275873,2.1427,172.68,172.61,48.03194371]
[1717671276044,5.8,172.67,172.62,3.03194371]
[1717671276760,7.9427,172.68,172.62,3.03194371]
[1717671279648,2.1427,172.68,172.62,3.03194371]
[1717671280544,2.1427,172.68,172.62,8.83194371]
[1717671280756,2.1427,172.68,172.63,45.0]
[1717671281257,2.1427,172.68,172.62,48.03194371]
[1717671281460,2.1427,172.68,172.62,48.03601302]
[1717671283263,2.1428,172.67,172.62,48.03601302]
[1717671283774,2.1427,172.68,172.62,48.03601302]
[1717671285252,2.1428,172.67,172.62,48.03601302]
[1717671286456,7.9427,172.68,172.62,48.03601302]
[1717671287168,2.1428,172.67,172.62,48.03601302]
[1717671287478,7.9427,172.68,172.62,48.03601302]
[1717671288269,2.1428,172.67,172.62,48.03601302]
[1717671288674,2.1428,172.67,172.62,45.0]
[1717671289463,2.1428,172.67,172.62,48.03601302]
[1717671290077,8.7821,172.66,172.61,3.03601302]
[1717671290287,14.5821,172.66,172.61,48.03601302]
[1717671290685,12.4392,172.66,172.61,48.03601302]
[1717671294085,6.6392,172.66,172.61,48.03601302]
[1717671309306,22.529,172.7,172.61,48.03601302]
[1717671309490,6.0853,172.7,172.64,5.8]
[1717671309807,6.0853,172.7,172.65,45.0]
[1717671310104,23.3535,172.74,172.65,50.8]
[1717671310277,11.8853,172.74,172.68,5.8]
[1717671311279,14.0272,172.74,172.68,5.8]
[1717671311783,14.0272,172.74,172.69,0.40636553]
[1717671312100,6.0853,172.74,172.69,45.40636553]
[1717671312291,11.8853,172.74,172.69,45.40636553]
[1717671313186,11.8853,172.74,172.69,0.40636553]
[1717671313590,11.8853,172.74,172.69,1.933356]
[1717671316700,14.0272,172.74,172.68,45.0]
[1717671321623,5.8,172.72,172.68,45.0]
[1717671321778,5.8,172.72,172.67,45.0]
[1717671322177,5.8,172.72,172.66,45.0]
[1717671322413,5.8,172.72,172.67,20.0]
[1717671322577,5.8,172.72,172.68,45.0]
[1717671325505,12.0733,172.72,172.67,20.0]
[1717671325704,5.8,172.71,172.67,20.0]
[1717671325901,5.8,172.7,172.62,3.03601302]
[1717671326107,5.8,172.7,172.64,5.8]
[1717671326303,5.8,172.7,172.61,120.0]
[1717671326504,5.8,172.71,172.64,5.8]
[1717671326837,5.8,172.71,172.65,5.8]
[1717671328129,5.8,172.71,172.61,124.9748125]
[1717671328453,5.8,172.71,172.65,5.8]
[1717671330323,8.4154,172.72,172.65,5.8]
[1717671330515,5.8,172.71,172.65,5.8]
[1717671332530,8.4155,172.72,172.65,5.8]
[1717671332836,5.8,172.71,172.65,5.8]
[1717671334733,8.4155,172.72,172.65,5.8]
[1717671334906,5.8,172.71,172.65,5.8]
[1717671339631,6.2733,172.72,172.65,5.8]
[1717671339840,5.8,172.73,172.66,45.0]
[1717671340730,7.9419,172.74,172.68,5.8]
[1717671340929,2.1419,172.74,172.68,5.8]
[1717671341128,5.8,172.74,172.68,5.8]
[1717671342512,2.3954806,172.75,172.68,5.8]
[1717671342812,5.8,172.74,172.68,5.8]
[1717671343456,7.9419,172.74,172.68,5.8]
[1717671343938,5.8,172.73,172.67,5.8]
[1717671344137,5.8,172.73,172.68,45.0]
[1717671345943,2.1419,172.74,172.68,45.0]
[1717671346449,0.2536806,172.75,172.68,45.0]
[1717671346450,5.8,172.73,172.68,45.0]
[1717671347043,2.1419,172.74,172.68,45.0]
[1717671347253,5.8,172.73,172.68,45.0]
[1717671352537,2.1419,172.74,172.68,45.0]
[1717671352737,5.8,172.73,172.68,45.0]
[1717671358856,2.3954806,172.75,172.68,45.0]
[1717671359033,5.8,172.73,172.68,45.0]
[1717671359563,2.3954806,172.75,172.68,45.0]